Cogmind - Beta 15 @@@ ROGUE MODE // 2025.06.24 @ 18:03:44 Player: LustLizard Result: Self-destructed Performance ------------- Evolutions (2) 1000 Regions Visited (3) 600 Robots Destroyed (23) 115 Value Destroyed (626) 626 Prototype IDs (0) 0 Alien Tech Used (0) 0 Bonus (0) 0 TOTAL SCORE: 2341 Bonus ------- None Cogmind --------- Core Integrity 377/550 Matter 300/300 Energy 100/100 System Corruption 0% Temperature Cool (9) Movement Core (650) Ox12 Location -8/Materials Parts ------- > --- POWER (1) -------- (None) > --- PROPULSION (3) --- Advanced Treads > --- UTILITY (4) ------ Large Storage Unit Trap Scanner Signal Interpreter > --- WEAPON (3) ------- Subdweller Beam Cannon Subdweller Beam Cannon > --- INVENTORY (15) --- Ion Engine Improved Ion Engine Light Nuclear Core Aluminum Leg Medium Storage Unit Subdweller Optics Sensor Array Advanced Terrain Scan Processor Hardened Medium Armor Plating Scrap Shield Subdweller Machine Gun Advanced EMP Blaster Rocket Launcher Rocket Launcher Peak State ------------ > --- POWER ------------ Ion Engine > --- PROPULSION ------- Light Treads Advanced Treads Wheel > --- UTILITY ---------- Heat Sink Large Storage Unit Trap Scanner Signal Interpreter > --- WEAPON ----------- Subdweller Beam Cannon Subdweller Beam Cannon Subdweller Beam Cannon > --- INVENTORY -------- Ion Engine Improved Ion Engine Light Nuclear Core Aluminum Leg Medium Storage Unit Subdweller Optics Sensor Array Advanced Terrain Scan Processor Hardened Medium Armor Plating Scrap Shield Subdweller Machine Gun Advanced EMP Blaster Rocket Launcher Rocket Launcher [Rating: 21] Favorites ----------- Power Ion Engine Engine Ion Engine Propulsion Light Treads Treads Light Treads Wheel Wheel Utility Large Storage Unit Device Sensor Array Storage Large Storage Unit Processor Signal Interpreter Protection Core Shielding Weapon Subdweller Beam Cannon Energy Gun Small Laser Energy Cannon Subdweller Beam Cannon Ballistic Gun Assault Rifle Build | -11 -10 -10 -8 ------- Run | Yrd Mat Sub Mat Slots Evolved 4 | . . . 4 Power . | . . . . Propulsion 1 | . . . 1 Utility 2 | . . . 2 Weapon 1 | . . . 1 Parts Attached 21 | 6 6 2 7 Power 2 | 1 1 . . Engine 2 | 1 1 . . Core . | . . . . Reactor . | . . . . Propulsion 5 | 2 2 . 1 Treads 3 | 1 1 . 1 Leg . | . . . . Wheel 2 | 1 1 . . Hover . | . . . . Flight . | . . . . Utility 8 | 1 2 . 5 Device 3 | . . . 3 Storage 3 | 1 1 . 1 Processor 1 | . . . 1 Hackware . | . . . . Protection 1 | . 1 . . Artifact . | . . . . Weapon 6 | 2 1 2 1 Energy Gun 2 | 1 1 . . Energy Cannon 3 | . . 2 1 Ballistic Gun 1 | 1 . . . Ballistic Cannon . | . . . . Launcher . | . . . . Special Weapon . | . . . . Impact Weapon . | . . . . Slashing Weapon . | . . . . Piercing Weapon . | . . . . Special Melee Weapon . | . . . . Unidentified Prototypes . | . . . . Parts Lost 6 | . 1 . 5 Power 1 | . . . 1 Propulsion 3 | . 1 . 2 Utility 1 | . . . 1 Weapon 1 | . . . 1 Highest Loss Streak 5 | . 1 . 5 To Critical Strikes . | . . . . Average Backups 12 | 5 10 14 13 Power 1 | . 1 1 2 Propulsion 2 | 2 3 2 1 Utility 4 | . 3 5 5 Weapon 3 | 1 2 5 4 Tool/Special . | . . . . Unused Backups 18 | . 1 2 15 Power 3 | . . . 3 Propulsion 2 | . . 1 1 Utility 4 | . . . 4 Weapon 9 | . 1 1 7 Tool/Special . | . . . . Average Slot Usage (%) 96 | . 98 100 90 Engine 12 | . 14 14 8 Treads 13 | . 15 14 12 Wheel 11 | . 12 14 8 Device 5 | . . . 15 Storage 12 | . 14 14 9 Processor 3 | . . . 8 Protection 9 | . 12 14 2 Energy Gun 10 | . 17 14 . Energy Cannon 12 | . . 13 25 Ballistic Gun 3 | . 10 . . Peak Build Rating 21 | 6 8 11 21 Average Rating 11 | 3 7 9 17 On Entrance 6 | . 6 8 11 Naked Turns . | . . . . Heaviest Build 61 | 13 29 42 61 Greatest Support 20 | 16 20 10 10 Greatest Overweight (x) 16 | . 2 4 16 Average Overweight (x) 2 | . . 2 4 Largest Inventory Capacity 15 | 8 15 15 15 Average Capacity 14 | 7 13 15 15 Most Carried 15 | 8 15 15 15 Average Carried 13 | 5 10 14 14 Final Capacity 15 | 8 15 15 15 Final Carried 15 | 6 14 15 15 Class Distribution -------------------- 74% | Mutant 25% | Skirmisher Dominant Class ---------------- Mutant | -10/Materials Mutant | -10/Subcaves Skirmisher | -8/Materials Resources | -11 -10 -10 -8 ----------- Run | Yrd Mat Sub Mat Matter Collected 458 | 250 98 20 90 Remotely . | . . . . Salvage Created 827 | . 148 107 572 Parts 49 | . 14 6 29 Haulers Intercepted 1 | . . . 1 Recyclers Shooed . | . . . . Parts Field Recycled . | . . . . Retrieved Matter . | . . . . Parts Self-Destructed 5 | . . 5 . Prevented . | . . . . Kills | -11 -10 -10 -8 ------- Run | Yrd Mat Sub Mat Combat Hostiles Destroyed 19 | . 7 3 9 Guns 10 | . 7 3 . Cannons 9 | . . . 9 Classes Destroyed 8 | . 2 1 5 Builder 2 | . . . 2 Hauler 1 | . . . 1 Mechanic 1 | . . . 1 Swarmer 7 | . 6 1 . Grunt 6 | . 1 . 5 Duelist 1 | . . . 1 Sentry 3 | . . . 3 Subdweller 2 | . . 2 . Best Kill Streak 5 | . 3 2 5 Combat Bots Only 4 | . 3 2 4 Max Kills in Single Turn 2 | . 1 2 1 Gunslinging 1 | . . 1 . Exploded . | . . . . Melee . | . . . . Uniques/NPCs Destroyed . | . . . . Combat | -11 -10 -10 -8 -------- Run | Yrd Mat Sub Mat Hostile Shots Fired 107 | . 47 9 51 Missed 37 | . 17 5 15 Hits 70 | . 30 4 36 Melee 1 | . . . 1 Projectile 69 | . 30 4 35 Critical Strikes 1 | . . . 1 Damage Taken 960 | . 271 85 604 Core 240 | . 40 27 173 Absorbed by Shields . | . . . . Redirected to Shielding 14 | . 8 6 . Core Remaining (%) 86 | 100 . 73 . Volleys Fired 46 | . 23 5 18 Largest 3 | . 2 2 3 Hottest 240 | . 90 90 240 Shots Fired 107 | . 46 10 51 Gun 56 | . 46 10 . Cannon 51 | . . . 51 Launcher . | . . . . Special . | . . . . Kinetic 11 | . 11 . . Thermal 96 | . 35 10 51 Explosive . | . . . . Electromagnetic . | . . . . Robot Hit Streak 8 | . 6 5 8 Robot Miss Streak 4 | . 4 1 3 Penetration Max . | . . . . Secondary Targets 1 | . . 1 . Max Gunslinging Chain 1 | . . 1 . Shots Hit Robots 56 | . 20 7 29 Core Hits 31 | . 8 6 17 Critical Kills 2 | . 1 . 1 Critical Parts Destroyed . | . . . . Critical Strikes 4 | . 2 1 1 Burn 2 | . 1 1 . Meltdown 1 | . . . 1 Destroy 1 | . 1 . . Melee Attacks . | . . . . Impact . | . . . . Slashing . | . . . . Piercing . | . . . . Sneak Attacks . | . . . . Combat Hostiles . | . . . . Follow-up Attacks . | . . . . Damage Inflicted 1217 | . 235 90 892 Guns 325 | . 235 90 . Cannons 892 | . . . 892 Explosions . | . . . . Melee . | . . . . Ramming . | . . . . Kinetic 63 | . 63 . . Thermal 1154 | . 172 90 892 Explosive . | . . . . Electromagnetic . | . . . . Impact . | . . . . Slashing . | . . . . Piercing . | . . . . Highest Corruption . | . . . . Average Corruption . | . . . . Corruption Purged . | . . . . Corruption Blocked . | . . . . Overload Shots . | . . . . Overflow Damage . | . . . . Projectiles . | . . . . Explosions . | . . . . Melee . | . . . . Knockbacks . | . . . . Impact . | . . . . Kinetic . | . . . . Secondary . | . . . . Self-Inflicted Damage . | . . . . Shots . | . . . . Rammed . | . . . . Targets Rammed . | . . . . Kicked . | . . . . Crushed . | . . . . Highest Temperature 472 | . 226 . 472 Average Temperature 153 | . 92 . 174 Received Heat Transfer 381 | . 42 24 315 Effects 3 | . . . 3 Damage (major) 3 | . . . 3 Siege Activations . | . . . . Martial Activations . | . . . . Shielding Activations . | . . . . Robots Disrupted . | . . . . Combat Hostiles . | . . . . Robots Corrupted . | . . . . Combat Hostiles . | . . . . Parts Fried . | . . . . Impact Corruptions . | . . . . Robots Melted 1 | . . . 1 Combat Hostiles . | . . . . Parts Melted 3 | . . . 3 Heat Transferred 2027 | . 521 322 1184 Parts Sabotaged . | . . . . Parts Stolen . | . . . . Parts Stripped . | . . . . Power Chain Reactions . | . . . . Alert | -11 -10 -10 -8 ------- Run | Yrd Mat Sub Mat Maximum Alert Level . | . . . . Low Security (%) 100 | 100 100 . 100 Level 1 . | . . . . Level 2 . | . . . . Level 3 . | . . . . Level 4 . | . . . . Level 5 . | . . . . High Security . | . . . . Max Security . | . . . . Peak Influence 146 | . 95 . 146 Initial . | . . . . Average 26 | . 22 . 32 Influence Increases 540 | . 250 20 270 Destroy 0b10 Robot/C 340 | . 140 20 180 Destroy 0b10 Robot/NC 20 | . . . 20 Destroy Leader 82 | . 30 . 52 Successful Hack 5 | . 5 . . Destroy Structure 18 | . . . 18 Lose Combat Pursuer 75 | . 75 . . Influence Decreases 450 | . 163 107 180 Entered New Map 43 | . . 43 . Time Decay 347 | . 153 64 130 Lost Part 60 | . 10 . 50 Squads Dispatched 2 | . 1 . 1 Investigation 1 | . 1 . . Extermination . | . . . . Reinforcement 1 | . . . 1 Assault . | . . . . Garrison . | . . . . Intercept . | . . . . Searches Triggered . | . . . . Construction Impeded . | . . . . Haulers Reinforced . | . . . . Active Scanning Responses . | . . . . Cargo Convoy Interrupts . | . . . . Stealth | -11 -10 -10 -8 --------- Run | Yrd Mat Sub Mat Distress Signals 1 | . . . 1 Communications Jammed . | . . . . Distress Signals . | . . . . Times Spotted 34 | . 9 10 15 Peak Tracking Total 4 | . 3 3 4 Tactical Retreats 2 | . 2 . . Traps | -11 -10 -10 -8 ------- Run | Yrd Mat Sub Mat Traps Triggered 1 | . 1 . . Indirectly . | . . . . Trap Hack Attempts . | . . . . Triggered . | . . . . Disarmed . | . . . . Reprogrammed . | . . . . Reused . | . . . . Traps Extracted . | . . . . Installed . | . . . . Triggered . | . . . . Machines | -11 -10 -10 -8 ---------- Run | Yrd Mat Sub Mat Machines Disabled . | . . . . Max in Single Turn . | . . . . Garrison Access 1 | . . . 1 Machines Repaired . | . . . . Machines Dismantled . | . . . . Machines Sabotaged . | . . . . Overloaded Fab Kills . | . . . . Hacking | -11 -10 -10 -8 --------- Run | Yrd Mat Sub Mat Machines Accessed 6 | . 3 2 1 Terminals 3 | . 3 . . Fabricators . | . . . . Repair Stations . | . . . . Recycling Units . | . . . . Scanalyzers . | . . . . Garrison Access 1 | . . . 1 Total Hacks 10 | . 6 3 1 Successful 7 | . 3 3 1 Failed 3 | . 3 . . Catastrophic . | . . . . Database Lockouts . | . . . . Manual 4 | . 4 . . Terminals 6 | . 6 . . Fabricators . | . . . . Repair Stations . | . . . . Recycling Units . | . . . . Scanalyzers . | . . . . Garrison Access 1 | . . . 1 Terminal Hacks 3 | . . 3 . Record 1 | . . 1 . Open Door 1 | . . 1 . Release Object 1 | . . 1 . Fabricator Hacks . | . . . . Repair Station Hacks . | . . . . Recycling Unit Hacks . | . . . . Scanalyzer . | . . . . Garrison Access Hacks 1 | . . . 1 Seal Access 1 | . . . 1 Unauthorized Hacks 3 | . 3 . . Terminals 3 | . 3 . . Assimilate 2 | . 2 . . Botnet 1 | . 1 . . Fabricators . | . . . . Repair Stations . | . . . . Recycling Units . | . . . . Scanalyzers . | . . . . Garrison Access . | . . . . Data Cores Recovered . | . . . . Used . | . . . . Hacking Detections 3 | . 3 . . Full Trace Events . | . . . . Feedback Events . | . . . . Feedback Blocked . | . . . . Robot Schematics Acquired . | . . . . Robots Built . | . . . . Authchips . | . . . . Time . | . . . . Total Robot Build Rating . | . . . . Part Schematics Acquired . | . . . . Parts Built . | . . . . Authchips . | . . . . Time . | . . . . Total Part Build Rating . | . . . . Parts Repaired . | . . . . Time . | . . . . Parts Recycled . | . . . . Recycled Matter . | . . . . Retrieved Matter . | . . . . Retrieved Components . | . . . . Parts Scanalyzed . | . . . . Part Schematics Acquired . | . . . . Parts Damaged . | . . . . Bothacking | -11 -10 -10 -8 ------------ Run | Yrd Mat Sub Mat Used RIF Installer . | . . . . Robots Hacked . | . . . . Non-combat . | . . . . Combat . | . . . . Robot Hacks Applied . | . . . . Relay Couplers Released . | . . . . Fabnet Peak Effective % . | . . . . Robots Rewired . | . . . . Allies Hacked . | . . . . Hacks Repelled . | . . . . Allies | -11 -10 -10 -8 -------- Run | Yrd Mat Sub Mat Total Allies . | . . . . Largest Group . | . . . . Highest-Rated Group . | . . . . Highest-Rated Ally . | . . . . Total Orders . | . . . . Ally Attacks . | . . . . Total Damage . | . . . . Kills . | . . . . Allies Corrupted . | . . . . Allies Melted 1 | . . 1 . Intel | -11 -10 -10 -8 ------- Run | Yrd Mat Sub Mat Active Infowar (turns) 633 | . . . 633 Sensors 526 | . . . 526 Traps 486 | . . . 486 Robot Analysis Total . | . . . . Derelict Logs Recovered . | . . . . Drone Launches . | . . . . Drone Recoveries . | . . . . Exploration | -11 -10 -10 -8 ------------- Run | Yrd Mat Sub Mat Turns Passed 1921 | 55 638 595 633 Spaces Moved 1270 | 41 469 450 310 Core 11 | 8 . . 3 Treads 17 | . 17 . . Legs . | . . . . Wheels 1242 | 33 452 450 307 Hover . | . . . . Flight . | . . . . Fastest Speed 50 | 50 100 110 140 Average Speed 127 | 90 113 123 159 Slowest Speed 850 | 100 240 140 850 Overloaded Moves . | . . . . Propulsion Burnouts . | . . . . Robots Hopped . | . . . . Potential Cave-ins . | . . . . Cave-ins Triggered . | . . . . Exploration Rate (%) 26 | 4 56 24 22 Regions Visited 3 Branch Regions 1 Pre-discovered Areas . | . . . . Known Exits Taken . | . . . . Unknown Exits Taken 3 | 1 1 1 . Scrap Searched . | . . . . Spaces Dug . | . . . . Terrain Destroyed 15 | . . . 15 Melee . | . . . . Projectile 15 | . . . 15 AOE . | . . . . Terrain Rammed . | . . . . Walls Destroyed . | . . . . Machines Disabled . | . . . . Actions | -11 -10 -10 -8 --------- Run | Yrd Mat Sub Mat Total 1481 | 58 529 481 413 Wait 88 | . 14 12 62 Move 1267 | 40 468 449 310 Hop . | . . . . Pick Up 41 | 12 14 6 9 Fast Attach . | . . . . Attach 16 | 6 3 2 5 Detach . | . . . . Swap 7 | . 3 . 4 Drop 15 | . 4 6 5 Fire 46 | . 23 5 18 Melee . | . . . . Ram . | . . . . Kick . | . . . . Crush . | . . . . Escape Stasis . | . . . . Rewire . | . . . . Trap . | . . . . Miscellaneous 1 | . . 1 . Route ------- -11/Scrapyard -10/Materials (discovered 3 exits: [*Mat] / [*Min] / *Sub) -10/Subcaves -8/Materials History --------- Turn | Location | Event 27 | -11/Scrapyard | Discovered new exit (range 16) 56 | -11/Scrapyard | Entered Materials 239 | -10/Materials | Discovered new exit (range 8) 304 | -10/Materials | Build established: Mutant 363 | -10/Materials | Discovered new exit (range 6) 447 | -10/Materials | Discovered new exit (range 10) 694 | -10/Materials | Entered Subcaves 695 | -10/Subcaves | Approached by a straggling Scientist 748 | -10/Subcaves | Discovered new exit (range 12) 844 | -10/Subcaves | Ambushed by swarm of Subdwellers 951 | -10/Subcaves | Released subatomizers from SUBCON Basin 1289 | -10/Subcaves | Entered Materials 1289 | -8/Materials | Evolved 4 slots: Propulsion x1, Utility x2, Weapon x1 1691 | -8/Materials | Build established: Skirmisher 1922 | -8/Materials | Self-destructed Last Messages --------------- down. 01881_ Heat Sink destroyed. 01885_ G-47 Trooper destroyed. 01887_ Overheating: Sub. Beam Cannon damaged (-17). 01887_ Overheating: Broken Sub. Beam Cannon damaged (-42). 01887_ Overheating: Trap Scanner damaged (-5). 01890_ R-06 Scavenger collects Lgt. Nuclear Core. 01891_ U-05 Engineer builds a Wall. 01892_ R-06 Scavenger collects Aluminum Leg. 01895_ R-06 Scavenger collects Particle Gun. 01896_ Wheel destroyed. 01897_ K-01 Serf collects debris. 01902_ Ion Engine destroyed. 01917_ Sub. Beam Cannon destroyed. 01918_ K-01 Serf collects debris. 01919_ Lgt. Treads destroyed. 01919_ K-01 Serf collects debris. Map ----- +----------------------------------------------------+ | ### #???????# #???# #????# #???????????????????? | | ######### #???# #????# +???????????????????? | | + ]## #???# #????# #???????????????????? | | ## # ## ##### #????# #???????????????????? | | ## # ## ^^ #????# #???????????????????? | | / / " " ## ^^ #????? ???????????????????? | | # # "R" ## #????? ???????????????????? | | # # """ ## ^ #????? " ???????????????????? | | =# ######### #????? ? ????????????????????? | | # #????####+## ] =#????????????????????????????? | | # # # %/#????????????????????????????? | | ## # "" """ #+##+##???????????????????????????? | | ?# # ?Y ""??# #???????????????????????????? | | ?# #?"??? ????# """#???????????????????????????? | | ?# #? ???????# """#???????????????????????????? | | ?# +?? ???????# """#???????????????????????????? | | ?# #??????????# #???????????????????????????? | | ?# #??????????# #???????????????????????????? | | ?? ???????????# #???????????????????????????? | | ?? ???????????# #???????????????????????????? | | ?? ???????????#" #???????????????????????????? | | ???????????????#T #???????????????????????????? | | ???????????????#" #???????????????????????????? | | ???????????????# %! #######?????????????????????? | | ??????#####+######+### #?????????????????????? | | ??? % g @ #?????????????????????? | | ??? % gk % ##????????????????????? | | ??? r g ##????????????????????? | | ????+###### ########k%%% ##????????????????????? | | ??????????# ??????#####+######??????????????????? | | ??????????# ???????# % % # #?????????????????? | | ??????????#????????# ##??????????????????? | | ???????????????????# """ #???????????????????? | | ??????????????????## """ #???????????????????? | | ??????????????????# """ ""#???????????????????? | | ??????????????????## Y"#???????????????????? | | ???????????????????# ""#???????????????????? | | ???????????????????# #???????????????????? | | ???????????????????###########???????????????????? | | ?????????????????????????????????????????????????? | | ?????????????????????????????????????????????????? | | ?????????????????????????????????????????????????? | | ?????????????????????????????????????????????????? | | ?????????????????????????????????????????????????? | | ?????????????????????????????????????????????????? | | ?????????????????????????????????????????????????? | | ?????????????????????????????????????????????????? | | ?????????????????????????????????????????????????? | | ?????????????????????????????????????????????????? | | ?????????????????????????????????????????????????? | +----------------------------------------------------+ Best States ------------- Heat Dissipation 41 Energy Generation 10 Energy Capacity 250 Matter Stores 300 Matter Capacity 300 Sight Range 16 Robot Scan Range 14 Terrain Scan Density 10 Core Shielding 20 Evasion (%) 40 Recoil Reduction 1 Item Schematics ----------------- None Robot Schematics ------------------ None Fabricated ------------ Nothing Repaired ---------- Nothing Alien Tech Used ----------------- None Achievements -------------- None Challenges ------------ None Game ------ Seed ShrapnelColdExpander Manual? 0 Play Time 00:21:50 Cumulative 141.4 hours Start 2025.05.13 @ 22:00:36 End 2025.06.24 @ 18:03:44 Sessions 4 Manual Loads 0 Difficulty Rogue Special Mode None Game No. 136 Rogue 136 Adventurer 0 Explorer 0 Win Type - Total 1 Types 1/0/0/0/0/0/0/0/0/0 Lore% 41 Gallery% 43 Achievement% 37 Wizard Run 0 Options --------- Layout 1 ASCII 0 Keyboard 0 Movement Numpad Keybinds 0 Fullscreen 1 Font 24/Smallcaps Map View 50x35 Zoom Use 0% Tactical HUD 1 Map Filters NONE Filters NONE Steam 1 RUN: 167cfcd6-65d8-48a2-af8d-50d300e8d915